[Event "Titled Tuesday Blitz July 18 Late 2023"]
[White "Cardenas Carbajal, Nilson"]
[Black "Ai, Evan"]
[WhiteFideId "8401128"]
[BlackFideId "2094770"]
[WhiteElo "2171"]
[BlackElo "2437"]
[Result "1/2-1/2"]
[Round "2"]
[TimeControl "180+2"]
[Date "2023.07.18"]
[WhiteClock "0:00:05"]
[BlackClock "0:00:50"]
[Board "180"]

1. e4 {[%clk 0:02:48]}  e6 {[%clk 0:03:00]} 2. Nf3 {[%clk 0:02:46]}  d5 {[%clk 0:03:01]} 3. e5 {[%clk 0:02:47]}  c5 {[%clk 0:02:58]} 4. b4 {[%clk 0:02:47]}  cxb4 {[%clk 0:02:58]} 5. d4 {[%clk 0:02:47]}  Nc6 {[%clk 0:02:57]} 6. a3 {[%clk 0:02:48]}  bxa3 {[%clk 0:02:56]} 7. c3 {[%clk 0:02:47]}  f6 {[%clk 0:02:56]} 8. Bd3 {[%clk 0:02:46]}  fxe5 {[%clk 0:02:54]} 9. dxe5 {[%clk 0:02:46]}  Bc5 {[%clk 0:02:52]} 10. O-O {[%clk 0:02:44]}  Nge7 {[%clk 0:02:49]} 11. Bxa3 {[%clk 0:02:44]}  Bxa3 {[%clk 0:02:48]} 12. Nxa3 {[%clk 0:02:45]}  O-O {[%clk 0:02:47]} 13. Nb5 {[%clk 0:02:45]}  Bd7 {[%clk 0:02:43]} 14. Nd6 {[%clk 0:02:42]}  b6 {[%clk 0:02:39]} 15. Ng5 {[%clk 0:02:32]}  h6 {[%clk 0:02:35]} 16. Bh7+ {[%clk 0:02:27]}  Kh8 {[%clk 0:02:35]} 17. Ndf7+ {[%clk 0:02:22]}  Rxf7 {[%clk 0:02:35]} 18. Nxf7+ {[%clk 0:02:21]}  Kxh7 {[%clk 0:02:36]} 19. Nxd8 {[%clk 0:02:21]}  Rxd8 {[%clk 0:02:37]} 20. Qb3 {[%clk 0:02:04]}  Na5 {[%clk 0:02:28]} 21. Qb4 {[%clk 0:02:00]}  Nec6 {[%clk 0:02:23]} 22. Qd6 {[%clk 0:01:54]}  Bc8 {[%clk 0:02:14]} 23. Qc7 {[%clk 0:01:51]}  Ba6 {[%clk 0:02:13]} 24. Rxa5 {[%clk 0:01:47]}  bxa5 {[%clk 0:02:11]} 25. Qxc6 {[%clk 0:01:44]}  Bxf1 {[%clk 0:02:11]} 26. Kxf1 {[%clk 0:01:44]}  Rb8 {[%clk 0:02:11]} 27. Qxe6 {[%clk 0:01:41]}  a4 {[%clk 0:02:10]} 28. Qxd5 {[%clk 0:01:36]}  a3 {[%clk 0:02:10]} 29. e6 {[%clk 0:01:29]}  Rb2 {[%clk 0:01:59]} 30. Qe4+ {[%clk 0:01:03]}  g6 {[%clk 0:01:55]} 31. g3 {[%clk 0:00:24]}  a2 {[%clk 0:01:54]} 32. e7 {[%clk 0:00:22]}  a1=Q+ {[%clk 0:01:51]} 33. Kg2 {[%clk 0:00:23]}  Rb8 {[%clk 0:01:29]} 34. e8=Q {[%clk 0:00:19]}  Rxe8 {[%clk 0:01:29]} 35. Qxe8 {[%clk 0:00:20]}  Qxc3 {[%clk 0:01:29]} 36. Qf7+ {[%clk 0:00:19]}  Qg7 {[%clk 0:01:29]} 37. Qd5 {[%clk 0:00:17]}  h5 {[%clk 0:01:27]} 38. h4 {[%clk 0:00:17]}  Qc7 {[%clk 0:01:26]} 39. f3 {[%clk 0:00:16]}  a5 {[%clk 0:01:26]} 40. g4 {[%clk 0:00:16]}  hxg4 {[%clk 0:01:22]} 41. fxg4 {[%clk 0:00:17]}  a4 {[%clk 0:01:23]} 42. h5 {[%clk 0:00:17]}  Qc2+ {[%clk 0:01:13]} 43. Kh3 {[%clk 0:00:16]}  Qc3+ {[%clk 0:01:13]} 44. Kg2 {[%clk 0:00:15]}  Qb2+ {[%clk 0:01:13]} 45. Kg1 {[%clk 0:00:12]}  Qb1+ {[%clk 0:01:11]} 46. Kg2 {[%clk 0:00:12]}  Qc2+ {[%clk 0:01:09]} 47. Kg1 {[%clk 0:00:11]}  a3 {[%clk 0:01:07]} 48. hxg6+ {[%clk 0:00:10]}  Kg7 {[%clk 0:01:01]} 49. Qd7+ {[%clk 0:00:07]}  Kh6 {[%clk 0:01:01]} 50. Qh7+ {[%clk 0:00:06]}  Kg5 {[%clk 0:01:01]} 51. Qh5+ {[%clk 0:00:06]}  Kf4 {[%clk 0:01:02]} 52. g7 {[%clk 0:00:04]}  Qd1+ {[%clk 0:00:55]} 53. Kh2 {[%clk 0:00:03]}  Qe2+ {[%clk 0:00:55]} 54. Kg1 {[%clk 0:00:03]}  Qe1+ {[%clk 0:00:54]} 55. Kh2 {[%clk 0:00:03]}  Qg3+ {[%clk 0:00:54]} 56. Kh1 {[%clk 0:00:02]}  Qf3+ {[%clk 0:00:54]} 57. Kh2 {[%clk 0:00:03]}  Qe2+ {[%clk 0:00:53]} 58. Kh1 {[%clk 0:00:03]}  Qe4+ {[%clk 0:00:53]} 59. Kh2 {[%clk 0:00:04]}  Qc2+ {[%clk 0:00:53]} 60. Kg1 {[%clk 0:00:04]}  Qb1+ {[%clk 0:00:53]} 61. Kh2 {[%clk 0:00:04]}  Qb2+ {[%clk 0:00:53]} 62. Kg1 {[%clk 0:00:05]}  Qxg7 {[%clk 0:00:53]} 63. Qf5+ {[%clk 0:00:04]}  Ke3 {[%clk 0:00:52]} 64. Qe6+ {[%clk 0:00:04]}  Kd4 {[%clk 0:00:48]} 65. Qd6+ {[%clk 0:00:04]}  Kc4 {[%clk 0:00:48]} 66. Qxa3 {[%clk 0:00:05]}  Qxg4+ {[%clk 0:00:48]} 67. Kf1 {[%clk 0:00:05]}  Qd1+ {[%clk 0:00:48]} 68. Kg2 {[%clk 0:00:05]}  Qe2+ {[%clk 0:00:48]} 69. Kh3 {[%clk 0:00:05]}  Qh5+ {[%clk 0:00:48]} 70. Kg3 {[%clk 0:00:04]}  Qg5+ {[%clk 0:00:49]} 71. Kf2 {[%clk 0:00:04]}  Qf4+ {[%clk 0:00:48]} 72. Qf3 {[%clk 0:00:05]}  Qh2+ {[%clk 0:00:48]} 73. Qg2 {[%clk 0:00:05]}  Qh4+ {[%clk 0:00:49]} 74. Qg3 {[%clk 0:00:05]}  Qxg3+ {[%clk 0:00:50]} 75. Kxg3 {[%clk 0:00:05]} 1/2-1/2


[Site "https://www.chess.com"]

[Event "Titled Tuesday Blitz July 18 Late 2023"]
[White "Glavina, Pablo"]
[Black "Osmonbekov, Talaibek"]
[WhiteFideId "100234"]
[BlackFideId "2017253"]
[WhiteElo "2435"]
[BlackElo "2171"]
[Result "1-0"]
[Round "2"]
[TimeControl "180+2"]
[Date "2023.07.18"]
[WhiteClock "0:01:51"]
[BlackClock "0:01:19"]
[Board "181"]

1. c4 {[%clk 0:02:58]}  e5 {[%clk 0:02:58]} 2. Nc3 {[%clk 0:02:57]}  d6 {[%clk 0:02:58]} 3. e3 {[%clk 0:02:56]}  f5 {[%clk 0:02:59]} 4. d4 {[%clk 0:02:56]}  e4 {[%clk 0:02:59]} 5. f3 {[%clk 0:02:53]}  Nf6 {[%clk 0:03:00]} 6. g3 {[%clk 0:02:45]}  c6 {[%clk 0:02:58]} 7. d5 {[%clk 0:02:43]}  Be7 {[%clk 0:02:41]} 8. Bg2 {[%clk 0:02:42]}  cxd5 {[%clk 0:02:41]} 9. cxd5 {[%clk 0:02:42]}  exf3 {[%clk 0:02:40]} 10. Nxf3 {[%clk 0:02:43]}  O-O {[%clk 0:02:40]} 11. O-O {[%clk 0:02:43]}  a5 {[%clk 0:02:38]} 12. Nd4 {[%clk 0:02:42]}  g6 {[%clk 0:02:37]} 13. e4 {[%clk 0:02:33]}  fxe4 {[%clk 0:02:33]} 14. Bh6 {[%clk 0:02:32]}  Rf7 {[%clk 0:02:29]} 15. Nxe4 {[%clk 0:02:31]}  Nxe4 {[%clk 0:02:19]} 16. Rxf7 {[%clk 0:02:29]}  Kxf7 {[%clk 0:02:16]} 17. Bxe4 {[%clk 0:02:30]}  Bf6 {[%clk 0:02:06]} 18. Ne6 {[%clk 0:02:24]}  Qb6+ {[%clk 0:02:06]} 19. Kh1 {[%clk 0:02:22]}  Na6 {[%clk 0:02:02]} 20. Qf3 {[%clk 0:02:15]}  Bxe6 {[%clk 0:01:52]} 21. dxe6+ {[%clk 0:02:15]}  Ke7 {[%clk 0:01:48]} 22. Rf1 {[%clk 0:02:12]}  Qxb2 {[%clk 0:01:43]} 23. Bg7 {[%clk 0:02:10]}  Nc5 {[%clk 0:01:32]} 24. Bxf6+ {[%clk 0:01:55]}  Kxe6 {[%clk 0:01:19]} 25. Bxb2 {[%clk 0:01:51]} 1-0


[Site "https://www.chess.com"]

[Event "Titled Tuesday Blitz July 18 Late 2023"]
[White "Kovacsy, Barnabas"]
[Black "Ishowmoves57"]
[WhiteFideId "769290"]
[WhiteElo "2433"]
[BlackElo "2158"]
[Result "1-0"]
[Round "2"]
[TimeControl "180+2"]
[Date "2023.07.18"]
[WhiteClock "0:00:26"]
[BlackClock "0:00:00"]
[Board "184"]

1. e4 {[%clk 0:03:00]}  c5 {[%clk 0:03:00]} 2. Nf3 {[%clk 0:03:00]}  Nc6 {[%clk 0:03:00]} 3. d4 {[%clk 0:02:56]}  cxd4 {[%clk 0:03:01]} 4. Nxd4 {[%clk 0:02:56]}  e5 {[%clk 0:03:00]} 5. Nb5 {[%clk 0:02:52]}  d6 {[%clk 0:03:00]} 6. N1c3 {[%clk 0:02:51]}  a6 {[%clk 0:03:01]} 7. Na3 {[%clk 0:02:51]}  b5 {[%clk 0:03:01]} 8. Nd5 {[%clk 0:02:51]}  Be7 {[%clk 0:03:01]} 9. Bd3 {[%clk 0:02:49]}  Nf6 {[%clk 0:03:00]} 10. c3 {[%clk 0:02:47]}  Nxd5 {[%clk 0:02:59]} 11. exd5 {[%clk 0:02:47]}  Nb8 {[%clk 0:02:56]} 12. Nc2 {[%clk 0:02:40]}  f5 {[%clk 0:02:54]} 13. O-O {[%clk 0:02:37]}  O-O {[%clk 0:02:54]} 14. f4 {[%clk 0:02:36]}  Nd7 {[%clk 0:02:47]} 15. fxe5 {[%clk 0:02:30]}  Nxe5 {[%clk 0:02:48]} 16. Nd4 {[%clk 0:02:27]}  Bg5 {[%clk 0:02:39]} 17. Kh1 {[%clk 0:02:20]}  g6 {[%clk 0:02:31]} 18. a4 {[%clk 0:02:06]}  Bxc1 {[%clk 0:02:24]} 19. Rxc1 {[%clk 0:02:05]}  bxa4 {[%clk 0:02:21]} 20. Nc6 {[%clk 0:01:59]}  Qf6 {[%clk 0:01:44]} 21. Nxe5 {[%clk 0:01:49]}  Qxe5 {[%clk 0:01:42]} 22. Qxa4 {[%clk 0:01:45]}  Rb8 {[%clk 0:01:25]} 23. Rce1 {[%clk 0:01:42]}  Qf6 {[%clk 0:01:17]} 24. Re2 {[%clk 0:01:32]}  f4 {[%clk 0:00:49]} 25. Be4 {[%clk 0:01:08]}  Qf7 {[%clk 0:00:32]} 26. Bf3 {[%clk 0:00:59]}  Bd7 {[%clk 0:00:28]} 27. Qd4 {[%clk 0:00:53]}  Rbc8 {[%clk 0:00:12]} 28. Rfe1 {[%clk 0:00:47]}  Rfe8 {[%clk 0:00:11]} 29. h3 {[%clk 0:00:40]}  Rxe2 {[%clk 0:00:10]} 30. Rxe2 {[%clk 0:00:39]}  g5 {[%clk 0:00:07]} 31. c4 {[%clk 0:00:34]}  Re8 {[%clk 0:00:07]} 32. Rxe8+ {[%clk 0:00:31]}  Qxe8 {[%clk 0:00:08]} 33. Qc3 {[%clk 0:00:25]}  Qe7 {[%clk 0:00:02]} 34. b4 {[%clk 0:00:25]}  Qg7 {[%clk 0:00:02]} 35. Qxg7+ {[%clk 0:00:24]}  Kxg7 {[%clk 0:00:02]} 36. c5 {[%clk 0:00:24]}  dxc5 {[%clk 0:00:02]} 37. bxc5 {[%clk 0:00:25]}  a5 {[%clk 0:00:02]} 38. c6 {[%clk 0:00:26]}  Bc8 {[%clk 0:00:02]} 39. d6 {[%clk 0:00:26]}  Kf7 {[%clk 0:00:02]} 40. d7 {[%clk 0:00:26]}  Bxd7 {[%clk 0:00:02]} 41. cxd7 {[%clk 0:00:26]}  Ke7 {[%clk 0:00:00]} 42. Bc6 {[%clk 0:00:26]} 1-0


[Site "https://www.chess.com"]

[Event "Titled Tuesday Blitz July 18 Late 2023"]
[White "Vanek, Tomas"]
[Black "Rios Escobar, Adan"]
[WhiteFideId "313459"]
[BlackFideId "3403645"]
[WhiteElo "2155"]
[BlackElo "2431"]
[Result "0-1"]
[Round "2"]
[TimeControl "180+2"]
[Date "2023.07.18"]
[WhiteClock "0:00:41"]
[BlackClock "0:00:10"]
[Board "185"]

1. d4 {[%clk 0:03:00]}  Nf6 {[%clk 0:02:57]} 2. Bf4 {[%clk 0:02:59]}  b6 {[%clk 0:02:57]} 3. c4 {[%clk 0:02:41]}  g6 {[%clk 0:02:52]} 4. Nc3 {[%clk 0:02:39]}  Bg7 {[%clk 0:02:52]} 5. e4 {[%clk 0:02:38]}  d6 {[%clk 0:02:45]} 6. Be2 {[%clk 0:02:24]}  c5 {[%clk 0:02:35]} 7. e5 {[%clk 0:02:23]}  dxe5 {[%clk 0:02:12]} 8. dxe5 {[%clk 0:02:21]}  Qxd1+ {[%clk 0:01:09]} 9. Rxd1 {[%clk 0:02:17]}  Nh5 {[%clk 0:01:10]} 10. Be3 {[%clk 0:01:02]}  Bb7 {[%clk 0:01:03]} 11. Bf3 {[%clk 0:01:00]}  Bxf3 {[%clk 0:00:32]} 12. Nxf3 {[%clk 0:01:00]}  f5 {[%clk 0:00:24]} 13. exf6 {[%clk 0:00:58]}  Nxf6 {[%clk 0:00:22]} 14. O-O {[%clk 0:00:57]}  O-O {[%clk 0:00:22]} 15. Rfe1 {[%clk 0:00:57]}  Nc6 {[%clk 0:00:21]} 16. Bf4 {[%clk 0:00:54]}  Rad8 {[%clk 0:00:20]} 17. Nd5 {[%clk 0:00:53]}  Nxd5 {[%clk 0:00:19]} 18. cxd5 {[%clk 0:00:53]}  Nd4 {[%clk 0:00:12]} 19. Nxd4 {[%clk 0:00:50]}  Bxd4 {[%clk 0:00:13]} 20. Bc1 {[%clk 0:00:48]}  Bxf2+ {[%clk 0:00:10]} 21. Kh1 {[%clk 0:00:48]}  Bxe1 {[%clk 0:00:10]} 22. Rxe1 {[%clk 0:00:48]}  Rxd5 {[%clk 0:00:11]} 23. h3 {[%clk 0:00:46]}  Re8 {[%clk 0:00:07]} 24. Kh2 {[%clk 0:00:45]}  e5 {[%clk 0:00:07]} 25. Rf1 {[%clk 0:00:45]}  e4 {[%clk 0:00:07]} 26. Re1 {[%clk 0:00:44]}  Rd3 {[%clk 0:00:05]} 27. h4 {[%clk 0:00:42]}  e3 {[%clk 0:00:04]} 28. Kg3 {[%clk 0:00:42]}  e2+ {[%clk 0:00:04]} 29. Kf2 {[%clk 0:00:42]}  Rd1 {[%clk 0:00:04]} 30. Bg5 {[%clk 0:00:41]}  Rxe1 {[%clk 0:00:01]} 31. Kxe1 {[%clk 0:00:40]}  Re4 {[%clk 0:00:02]} 32. Bf6 {[%clk 0:00:40]}  Kf7 {[%clk 0:00:02]} 33. Bc3 {[%clk 0:00:38]}  Ke6 {[%clk 0:00:02]} 34. g3 {[%clk 0:00:38]}  Kf5 {[%clk 0:00:03]} 35. Kf2 {[%clk 0:00:38]}  Kg4 {[%clk 0:00:03]} 36. Ke1 {[%clk 0:00:38]}  Kf3 {[%clk 0:00:03]} 37. Bd2 {[%clk 0:00:36]}  Kxg3 {[%clk 0:00:04]} 38. h5 {[%clk 0:00:37]}  Kf3 {[%clk 0:00:04]} 39. hxg6 {[%clk 0:00:38]}  hxg6 {[%clk 0:00:05]} 40. Bc3 {[%clk 0:00:38]}  g5 {[%clk 0:00:05]} 41. Kd2 {[%clk 0:00:39]}  g4 {[%clk 0:00:05]} 42. Ke1 {[%clk 0:00:40]}  g3 {[%clk 0:00:06]} 43. Kd2 {[%clk 0:00:41]}  e1=Q+ {[%clk 0:00:06]} 44. Kc2 {[%clk 0:00:41]}  Qe2+ {[%clk 0:00:07]} 45. Kb3 {[%clk 0:00:42]}  g2 {[%clk 0:00:07]} 46. a3 {[%clk 0:00:41]}  Qb5+ {[%clk 0:00:08]} 47. Ka2 {[%clk 0:00:42]}  Qc4+ {[%clk 0:00:08]} 48. b3 {[%clk 0:00:42]}  Re2+ {[%clk 0:00:08]} 49. Kb1 {[%clk 0:00:42]}  Qxc3 {[%clk 0:00:09]} 50. b4 {[%clk 0:00:41]}  Qb2# {[%clk 0:00:10]} 0-1


[Site "https://www.chess.com"]

[Event "Titled Tuesday Blitz July 18 Late 2023"]
[White "Mangialardo, Tiago Carvalho"]
[Black "Sliwicki, Damian"]
[WhiteFideId "2130718"]
[BlackFideId "1127128"]
[WhiteElo "2141"]
[BlackElo "2430"]
[Result "0-1"]
[Round "2"]
[TimeControl "180+2"]
[Date "2023.07.18"]
[WhiteClock "0:00:30"]
[BlackClock "0:00:49"]
[Board "186"]

1. e4 {[%clk 0:03:00]}  c5 {[%clk 0:02:59]} 2. Nf3 {[%clk 0:03:00]}  g6 {[%clk 0:02:59]} 3. d4 {[%clk 0:02:59]}  cxd4 {[%clk 0:03:00]} 4. Qxd4 {[%clk 0:03:00]}  Nf6 {[%clk 0:03:00]} 5. Qa4 {[%clk 0:02:55]}  Bg7 {[%clk 0:02:54]} 6. Nc3 {[%clk 0:02:53]}  O-O {[%clk 0:02:54]} 7. e5 {[%clk 0:02:51]}  Ne8 {[%clk 0:02:51]} 8. Bf4 {[%clk 0:02:30]}  Nc6 {[%clk 0:02:48]} 9. O-O-O {[%clk 0:02:28]}  Nc7 {[%clk 0:02:45]} 10. h4 {[%clk 0:02:24]}  Ne6 {[%clk 0:02:44]} 11. Bg3 {[%clk 0:02:22]}  Qa5 {[%clk 0:01:54]} 12. Qxa5 {[%clk 0:02:05]}  Nxa5 {[%clk 0:01:55]} 13. Nd5 {[%clk 0:02:05]}  Nc6 {[%clk 0:01:49]} 14. Bb5 {[%clk 0:02:03]}  Kh8 {[%clk 0:01:39]} 15. Bxc6 {[%clk 0:01:58]}  dxc6 {[%clk 0:01:40]} 16. Nxe7 {[%clk 0:01:58]}  Re8 {[%clk 0:01:37]} 17. Nxc8 {[%clk 0:01:52]}  Raxc8 {[%clk 0:01:38]} 18. Rd7 {[%clk 0:01:47]}  Nc5 {[%clk 0:01:29]} 19. Rxf7 {[%clk 0:01:37]}  Kg8 {[%clk 0:01:29]} 20. Rf4 {[%clk 0:01:30]}  Bh6 {[%clk 0:01:22]} 21. Ng5 {[%clk 0:01:30]}  Rxe5 {[%clk 0:01:15]} 22. f3 {[%clk 0:01:03]}  Ne6 {[%clk 0:00:58]} 23. Rf8+ {[%clk 0:00:46]}  Rxf8 {[%clk 0:00:52]} 24. Bxe5 {[%clk 0:00:46]}  Nxg5 {[%clk 0:00:51]} 25. hxg5 {[%clk 0:00:47]}  Bxg5+ {[%clk 0:00:52]} 26. Kd1 {[%clk 0:00:46]}  Rd8+ {[%clk 0:00:51]} 27. Ke2 {[%clk 0:00:38]}  Re8 {[%clk 0:00:51]} 28. Kd3 {[%clk 0:00:35]}  Rxe5 {[%clk 0:00:51]} 29. c4 {[%clk 0:00:34]}  c5 {[%clk 0:00:49]} 30. g3 {[%clk 0:00:32]}  Re3+ {[%clk 0:00:49]} 31. Kc2 {[%clk 0:00:30]}  Rxf3 {[%clk 0:00:49]} 0-1


[Site "https://www.chess.com"]

[Event "Titled Tuesday Blitz July 18 Late 2023"]
[White "Ricaurte Lopez, Juan Carlos"]
[Black "Gatterer, Florian"]
[WhiteFideId "3600327"]
[BlackFideId "811688"]
[WhiteElo "2139"]
[BlackElo "2428"]
[Result "1/2-1/2"]
[Round "2"]
[TimeControl "180+2"]
[Date "2023.07.18"]
[WhiteClock "0:02:24"]
[BlackClock "0:02:33"]
[Board "187"]

1. e4 {[%clk 0:03:00]}  c5 {[%clk 0:03:00]} 2. d4 {[%clk 0:02:58]}  cxd4 {[%clk 0:02:58]} 3. c3 {[%clk 0:02:58]}  dxc3 {[%clk 0:02:59]} 4. Nxc3 {[%clk 0:02:57]}  Nc6 {[%clk 0:02:59]} 5. Bc4 {[%clk 0:02:54]}  e6 {[%clk 0:02:59]} 6. Nf3 {[%clk 0:02:51]}  a6 {[%clk 0:02:59]} 7. O-O {[%clk 0:02:48]}  Bb4 {[%clk 0:02:58]} 8. Qe2 {[%clk 0:02:40]}  b5 {[%clk 0:02:56]} 9. Bb3 {[%clk 0:02:38]}  Nge7 {[%clk 0:02:53]} 10. Bg5 {[%clk 0:02:34]}  h6 {[%clk 0:02:52]} 11. Bh4 {[%clk 0:02:33]}  Qb6 {[%clk 0:02:41]} 12. Rfd1 {[%clk 0:02:26]}  Ng6 {[%clk 0:02:33]} 13. Bg3 {[%clk 0:02:24]} 1/2-1/2


[Site "https://www.chess.com"]

[Event "Titled Tuesday Blitz July 18 Late 2023"]
[White "Manukian, Artak"]
[Black "Bongo Akanga Ndjila, Barthelemy"]
[WhiteFideId "13301373"]
[BlackFideId "10609431"]
[WhiteElo "2425"]
[BlackElo "2078"]
[Result "1-0"]
[Round "2"]
[TimeControl "180+2"]
[Date "2023.07.18"]
[WhiteClock "0:00:13"]
[BlackClock "0:00:05"]
[Board "190"]

1. e4 {[%clk 0:02:55]}  e6 {[%clk 0:02:59]} 2. d4 {[%clk 0:02:55]}  d5 {[%clk 0:02:59]} 3. e5 {[%clk 0:02:55]}  c5 {[%clk 0:02:58]} 4. c3 {[%clk 0:02:56]}  Nc6 {[%clk 0:02:58]} 5. Nf3 {[%clk 0:02:55]}  Bd7 {[%clk 0:02:49]} 6. a3 {[%clk 0:02:54]}  cxd4 {[%clk 0:02:47]} 7. cxd4 {[%clk 0:02:54]}  f6 {[%clk 0:02:43]} 8. Bd3 {[%clk 0:02:52]}  fxe5 {[%clk 0:02:41]} 9. Nxe5 {[%clk 0:02:52]}  Nxe5 {[%clk 0:02:38]} 10. dxe5 {[%clk 0:02:52]}  Qc7 {[%clk 0:02:37]} 11. O-O {[%clk 0:02:41]}  g6 {[%clk 0:02:17]} 12. Nc3 {[%clk 0:02:14]}  a6 {[%clk 0:02:16]} 13. Bf4 {[%clk 0:02:08]}  Bg7 {[%clk 0:02:16]} 14. Rc1 {[%clk 0:02:06]}  Qb8 {[%clk 0:02:12]} 15. Na4 {[%clk 0:01:59]}  Bxa4 {[%clk 0:01:53]} 16. Qxa4+ {[%clk 0:01:58]}  b5 {[%clk 0:01:53]} 17. Qc2 {[%clk 0:01:54]}  Ne7 {[%clk 0:01:52]} 18. Qc5 {[%clk 0:01:51]}  Ra7 {[%clk 0:01:50]} 19. Qd6 {[%clk 0:01:47]}  Qd8 {[%clk 0:01:46]} 20. Qxe6 {[%clk 0:01:35]}  Qd7 {[%clk 0:01:20]} 21. Qb6 {[%clk 0:01:20]}  O-O {[%clk 0:01:17]} 22. Bg3 {[%clk 0:01:18]}  Nf5 {[%clk 0:01:10]} 23. e6 {[%clk 0:01:14]}  Qb7 {[%clk 0:01:02]} 24. Qxb7 {[%clk 0:01:05]}  Rxb7 {[%clk 0:01:00]} 25. Bxf5 {[%clk 0:00:54]}  Rxf5 {[%clk 0:00:57]} 26. Rc6 {[%clk 0:00:49]}  Bxb2 {[%clk 0:00:51]} 27. Rxa6 {[%clk 0:00:48]}  Be5 {[%clk 0:00:39]} 28. Rd1 {[%clk 0:00:33]}  Bxg3 {[%clk 0:00:35]} 29. hxg3 {[%clk 0:00:34]}  Re5 {[%clk 0:00:35]} 30. f4 {[%clk 0:00:33]}  Re2 {[%clk 0:00:33]} 31. Rxd5 {[%clk 0:00:31]}  Re7 {[%clk 0:00:25]} 32. Re5 {[%clk 0:00:23]}  Rxe5 {[%clk 0:00:23]} 33. fxe5 {[%clk 0:00:24]}  g5 {[%clk 0:00:23]} 34. Kf2 {[%clk 0:00:24]}  Kg7 {[%clk 0:00:24]} 35. Ke3 {[%clk 0:00:23]}  Kg6 {[%clk 0:00:24]} 36. g4 {[%clk 0:00:21]}  h5 {[%clk 0:00:23]} 37. gxh5+ {[%clk 0:00:21]}  Kxh5 {[%clk 0:00:24]} 38. Ke4 {[%clk 0:00:21]}  Kg6 {[%clk 0:00:23]} 39. g4 {[%clk 0:00:21]}  Rb7 {[%clk 0:00:17]} 40. Rd6 {[%clk 0:00:18]}  b4 {[%clk 0:00:15]} 41. axb4 {[%clk 0:00:16]}  Rxb4+ {[%clk 0:00:16]} 42. Rd4 {[%clk 0:00:16]}  Rb6 {[%clk 0:00:15]} 43. Kd5 {[%clk 0:00:16]}  Rb5+ {[%clk 0:00:14]} 44. Kd6 {[%clk 0:00:16]}  Kg7 {[%clk 0:00:12]} 45. Ra4 {[%clk 0:00:15]}  Rb6+ {[%clk 0:00:11]} 46. Kd5 {[%clk 0:00:14]}  Kf8 {[%clk 0:00:11]} 47. Ra7 {[%clk 0:00:13]}  Rb5+ {[%clk 0:00:10]} 48. Ke4 {[%clk 0:00:13]}  Rb6 {[%clk 0:00:09]} 49. Kf5 {[%clk 0:00:13]}  Ke8 {[%clk 0:00:08]} 50. Kf6 {[%clk 0:00:13]}  Rb8 {[%clk 0:00:07]} 51. Rh7 {[%clk 0:00:13]}  Rb1 {[%clk 0:00:05]} 52. Rh8# {[%clk 0:00:13]} 1-0


[Site "https://www.chess.com"]

[Event "Titled Tuesday Blitz July 18 Late 2023"]
[White "Herman, Daniel"]
[Black "Feliz Dotel, Dewar Bienvenido"]
[WhiteFideId "30935008"]
[BlackFideId "6402801"]
[WhiteElo "2417"]
[BlackElo "2072"]
[Result "1-0"]
[Round "2"]
[TimeControl "180+2"]
[Date "2023.07.18"]
[WhiteClock "0:01:02"]
[BlackClock "0:00:49"]
[Board "191"]

1. c4 {[%clk 0:03:00]}  e6 {[%clk 0:02:58]} 2. Nf3 {[%clk 0:02:57]}  d5 {[%clk 0:02:59]} 3. e3 {[%clk 0:02:56]}  Nf6 {[%clk 0:02:58]} 4. b3 {[%clk 0:02:53]}  c5 {[%clk 0:02:58]} 5. cxd5 {[%clk 0:02:51]}  exd5 {[%clk 0:02:59]} 6. d4 {[%clk 0:02:52]}  Be7 {[%clk 0:02:57]} 7. Bb5+ {[%clk 0:02:48]}  Bd7 {[%clk 0:02:56]} 8. Bxd7+ {[%clk 0:02:47]}  Nbxd7 {[%clk 0:02:57]} 9. dxc5 {[%clk 0:02:45]}  Nxc5 {[%clk 0:02:54]} 10. O-O {[%clk 0:02:45]}  O-O {[%clk 0:02:54]} 11. Bb2 {[%clk 0:02:45]}  Nce4 {[%clk 0:02:54]} 12. Nc3 {[%clk 0:02:39]}  a6 {[%clk 0:02:48]} 13. Ne2 {[%clk 0:02:30]}  h6 {[%clk 0:02:44]} 14. Ned4 {[%clk 0:02:27]}  Rc8 {[%clk 0:02:42]} 15. Rc1 {[%clk 0:02:21]}  Qa5 {[%clk 0:02:34]} 16. Nf5 {[%clk 0:02:13]}  Ba3 {[%clk 0:02:30]} 17. Rxc8 {[%clk 0:01:39]}  Rxc8 {[%clk 0:02:27]} 18. Qa1 {[%clk 0:01:39]}  Rc2 {[%clk 0:02:18]} 19. Bxf6 {[%clk 0:01:36]}  Nxf6 {[%clk 0:02:17]} 20. Nxh6+ {[%clk 0:01:35]}  Kh7 {[%clk 0:02:08]} 21. Nxf7 {[%clk 0:01:28]}  Ne4 {[%clk 0:01:29]} 22. N3g5+ {[%clk 0:01:22]}  Kg6 {[%clk 0:01:27]} 23. Nxe4 {[%clk 0:01:20]}  dxe4 {[%clk 0:01:28]} 24. Ne5+ {[%clk 0:01:12]}  Kh7 {[%clk 0:01:25]} 25. Nc4 {[%clk 0:01:11]}  Qc5 {[%clk 0:01:14]} 26. Qb1 {[%clk 0:01:10]}  Re2 {[%clk 0:01:00]} 27. Qxe4+ {[%clk 0:01:08]}  Kh8 {[%clk 0:00:58]} 28. Nxa3 {[%clk 0:01:01]}  Qxa3 {[%clk 0:00:58]} 29. Qe8+ {[%clk 0:01:02]}  Kh7 {[%clk 0:00:49]} 30. Qh5+ {[%clk 0:01:02]} 1-0


[Site "https://www.chess.com"]